lending/lending_fUSD_20251022
["ID","MTS","AMOUNT","RATE_DAILY","PERIOD"]
[392101438,1761161459606,-500.0,0.00043976,120]
[392101439,1761161459615,-500.0,0.00043976,120]
[392101440,1761161459624,-500.0,0.00043976,120]
[392101441,1761161459634,-500.0,0.00043976,120]
[392101442,1761161459643,-313.05767691,0.00043976,120]
[392101443,1761161459653,-500.0,0.00043976,120]
[392101444,1761161459663,-1074.58,0.00043976,120]
[392101445,1761161459672,-500.0,0.00043976,120]
[392101446,1761161459682,-1203.5,0.00043976,120]
[392101447,1761161459692,-318.00737223,0.00043976,120]
[392101448,1761161459701,-2024.8,0.00043976,120]
[392101449,1761161459711,-500.0,0.00043977,120]
[392101450,1761161459721,-4265.19,0.00043977,30]
[392101451,1761161459730,-500.0,0.00043977,120]
[392101452,1761161459740,-538.57,0.00043977,120]
[392101453,1761161459750,-709.57,0.00043977,120]
[392101454,1761161459759,-4110.15,0.00043977,120]
[392101455,1761161459769,-889.38,0.00043977,120]
[392101456,1761161459779,-777.67,0.00043977,120]
[392101457,1761161459788,-500.0,0.00043977,120]
[392101458,1761161459799,-500.0,0.00043977,120]
[392101459,1761161459808,-537.84,0.00043977,120]
[392101460,1761161459818,-254.87069447,0.00043977,120]
[392101461,1761161459828,-151.0,0.00043977,120]
[392101462,1761161459838,-256.6096,0.00043977,120]
[392101463,1761161459848,-151.0,0.00043977,120]
[392101464,1761161459858,-188.878195,0.00043977,30]
[392101465,1761161459868,-151.0,0.00043977,120]
[392101466,1761161459877,-188.878195,0.00043977,30]
[392101467,1761161459886,-151.0,0.00043977,120]
[392101468,1761161459896,-151.0,0.00043978,120]
[392101469,1761161459906,-151.0,0.00043978,120]
[392101470,1761161459916,-151.0,0.00043978,120]
[392101471,1761161459925,-153.633309,0.00043978,120]
[392101472,1761161459935,-156.650437,0.00043978,120]
[392101473,1761161459945,-177.457801,0.00043978,120]
[392101474,1761161459955,-1205.25,0.00043978,120]
[392101475,1761161459965,-824.35,0.00043978,120]
[392101476,1761161459975,-500.0,0.00043978,120]
[392101477,1761161459985,-500.0,0.00043978,7]
[392101478,1761161459995,-623.15,0.00043978,120]
[392101479,1761161460005,-500.0,0.00043978,120]
[392101480,1761161460014,-500.0,0.00043978,120]
[392101481,1761161460023,-891.43,0.00043978,120]
[392101482,1761161460033,-500.0,0.00043978,120]
[392101483,1761161460043,-500.0,0.00043978,120]
[392101484,1761161460053,-500.0,0.00043978,120]
[392101485,1761161460062,-691.13,0.00043978,120]
[392101486,1761161460071,-500.0,0.00043978,120]
[392101487,1761161460081,-3246.52,0.00043978,120]
[392101488,1761161460091,-5477.48,0.00043978,120]
[392101489,1761161460100,-521.96,0.00043978,120]
[392101490,1761161460109,-500.0,0.00043978,120]
[392101491,1761161460119,-593.34,0.00043978,120]
[392101492,1761161460128,-665.52,0.00043978,120]
[392101493,1761161460138,-500.0,0.00043978,120]
[392101494,1761161460146,-1079.01,0.00043978,120]
[392101495,1761161460156,-692.82,0.00043978,120]
[392101496,1761161460165,-1016.54,0.00043978,120]
[392101497,1761161460175,-651.4,0.00043978,120]
[392101498,1761161460184,-558.32,0.00043978,120]
[392101499,1761161460193,-609.65,0.00043978,120]
[392101500,1761161460203,-246.68308108,0.00043978,120]
[392101501,1761161460212,-692.44,0.00043978,120]
[392101502,1761161460225,-151.0,0.00043979,120]
[392101503,1761161460234,-157.027548,0.00043979,120]
[392101504,1761161460243,-153.266632,0.00043979,120]
[392101505,1761161460253,-151.0,0.00043979,120]
[392101506,1761161460262,-151.0,0.00043979,120]
[392101507,1761161460271,-151.0,0.00043979,120]
[392101508,1761161460281,-153.290523,0.00043979,120]
[392101509,1761161460290,-155.608001,0.00043979,120]
[392101510,1761161460299,-151.0,0.00043979,120]
[392101511,1761161460308,-156.332922,0.00043979,120]
[392101512,1761161460317,-151.0,0.00043979,120]
[392101513,1761161460326,-151.0,0.00043979,120]
[392101514,1761161460335,-275.342862,0.00043979,120]
[392101515,1761161460344,-151.000008,0.00043979,120]
[392101516,1761161460353,-500.0,0.0004398,120]
[392101517,1761161460362,-233.54811008,0.0004398,120]
[392101518,1761161460372,-277.93297028,0.0004398,120]
[392101519,1761161460381,-500.0,0.0004398,120]
[392101520,1761161460390,-764.41,0.0004398,120]
[392101521,1761161460399,-571.58,0.0004398,30]
[392101522,1761161460408,-804.79,0.0004398,120]
[392101523,1761161460418,-500.0,0.0004398,120]
[392101524,1761161460427,-469.21980212,0.0004398,120]
[392101525,1761161460436,-527.97,0.0004398,120]
[392101526,1761161460446,-500.0,0.0004398,120]
[392101527,1761161460455,-791.58,0.0004398,120]
[392101528,1761161460464,-500.0,0.0004398,120]
[392101529,1761161460475,-780.17,0.0004398,120]
[392101530,1761161460484,-990.94,0.0004398,120]
[392101531,1761161460494,-1044.35,0.0004398,120]
[392101532,1761161460504,-500.0,0.0004398,120]
[392101533,1761161460513,-500.0,0.0004398,120]
[392101534,1761161460523,-500.0,0.0004398,120]
[392101535,1761161460532,-500.0,0.0004398,120]
[392101536,1761161460541,-1596.27,0.0004398,120]
[392101537,1761161460550,-287.22154304,0.0004398,120]
[392101538,1761161460559,-500.0,0.0004398,120]
[392101539,1761161460568,-500.0,0.0004398,120]
[392101540,1761161460579,-500.0,0.0004398,120]
[392101541,1761161460588,-500.0,0.0004398,120]
[392101542,1761161460598,-500.0,0.0004398,2]
[392101543,1761161460607,-509.23955739,0.0004398,120]
[392101544,1761161460617,-500.0,0.0004398,120]
[392101545,1761161460628,-837.99,0.0004398,120]
[392101546,1761161460638,-500.0,0.0004398,120]
[392101547,1761161460647,-500.0,0.0004398,120]
[392101548,1761161460656,-500.0,0.0004398,120]
[392101549,1761161460665,-858.34,0.0004398,2]
[392101550,1761161460675,-430.22178879,0.0004398,120]
[392101551,1761161460684,-1101.44,0.0004398,120]
[392101552,1761161460693,-500.0,0.0004398,120]
[392101553,1761161460703,-668.32,0.0004398,120]
[392101554,1761161460712,-500.0,0.0004398,120]
[392101555,1761161460722,-500.0,0.0004398,120]
[392101556,1761161460731,-1263.06,0.0004398,120]
[392101557,1761161460740,-500.0,0.0004398,120]
[392101558,1761161460749,-1623.35,0.0004398,120]
[392101559,1761161460758,-500.0,0.0004398,120]
[392101560,1761161460768,-617.0,0.0004398,120]
[392101561,1761161460776,-500.0,0.0004398,120]
[392101562,1761161460786,-500.0,0.0004398,120]
[392101563,1761161460795,-500.0,0.0004398,120]
[392101564,1761161460805,-500.0,0.0004398,120]
[392101565,1761161460815,-500.0,0.0004398,120]
[392101566,1761161460824,-500.0,0.0004398,120]
[392101567,1761161460833,-500.0,0.0004398,120]
[392101568,1761161460843,-500.0,0.0004398,120]
[392101569,1761161460852,-500.0,0.0004398,120]
[392101570,1761161460862,-1404.73,0.0004398,120]
[392101571,1761161460871,-636.1,0.0004398,120]
[392101572,1761161460880,-500.0,0.0004398,120]
[392101573,1761161460890,-825.9,0.0004398,120]
[392101574,1761161460900,-857.87,0.0004398,120]
[392101575,1761161460909,-707.53,0.0004398,120]
[392101576,1761161460919,-887.37,0.00043986,120]
[392101577,1761161460928,-500.0,0.00043986,120]
[392101578,1761161461030,-789.86,0.00043986,120]
[392101579,1761161461040,-500.0,0.00043986,120]
[392101580,1761161461050,-485.89964563,0.00043987,120]
[392101581,1761161461059,-4265.19,0.00043987,30]
[392101582,1761161461069,-500.0,0.00043987,120]
[392101583,1761161461078,-538.57,0.00043987,120]
[392101584,1761161461087,-709.57,0.00043987,120]
[392101585,1761161461097,-4110.15,0.00043987,120]
[392101586,1761161461107,-889.38,0.00043987,120]
[392101587,1761161461117,-777.67,0.00043987,120]
[392101588,1761161461127,-887.37,0.00043987,120]
[392101589,1761161461137,-887.37,0.00043987,120]
[392101590,1761161461147,-500.0,0.00043987,120]
[392101591,1761161461156,-537.84,0.00043987,120]
[392101592,1761161461166,-500.0,0.00043987,120]
[392101593,1761161461176,-500.0,0.00043987,120]
[392101594,1761161461185,-789.86,0.00043987,120]
[392101595,1761161461195,-789.86,0.00043987,120]
[392101596,1761161461204,-500.0,0.00043987,120]
[392101597,1761161461213,-500.0,0.00043987,120]
[392101598,1761161461227,-500.0,0.00043988,120]
[392101599,1761161461236,-548.33,0.00043988,120]
[392101600,1761161461246,-500.0,0.00043988,120]
[392101601,1761161461256,-300.0,0.00043988,2]
[392101602,1761161461266,-606.82,0.00043988,120]
[392101603,1761161461275,-500.0,0.00043988,120]
[392101604,1761161461284,-671.52,0.00043988,120]
[392101605,1761161461295,-500.0,0.00043988,120]
[392101606,1761161461304,-500.0,0.00043988,120]
[392101607,1761161461314,-500.0,0.00043988,120]
[392101608,1761161461323,-500.0,0.00043988,120]
[392101609,1761161461332,-500.0,0.00043988,120]
[392101610,1761161461342,-500.0,0.00043988,120]
[392101611,1761161461352,-500.0,0.00043988,120]
[392101612,1761161461362,-500.0,0.00043988,120]
[392101613,1761161461372,-500.0,0.00043988,120]
[392101614,1761161461382,-500.0,0.00043988,2]
[392101615,1761161461392,-500.0,0.00043988,120]
[392101616,1761161461401,-500.0,0.00043988,120]
[392101617,1761161461410,-500.0,0.00043988,120]
[392101618,1761161461419,-624.19061579,0.00043988,120]
[392101619,1761161461429,-500.0,0.00043988,120]
[392101620,1761161461439,-500.0,0.00043988,120]
[392101621,1761161461448,-500.0,0.00043988,120]
[392101622,1761161461457,-500.0,0.00043988,120]
[392101623,1761161461467,-500.0,0.00043988,120]
[392101624,1761161461477,-508.05081099,0.00043988,120]
[392101625,1761161461486,-640.79,0.00043988,60]
[392101626,1761161461496,-432.17319631,0.00043988,120]
[392101627,1761161461506,-500.0,0.00043988,120]
[392101628,1761161461515,-524.04,0.00043988,120]
[392101629,1761161461525,-500.0,0.00043988,120]
[392101630,1761161461534,-500.0,0.00043988,120]
[392101631,1761161461543,-500.0,0.00043988,120]
[392101632,1761161461553,-500.0,0.00043988,120]
[392101633,1761161461562,-500.0,0.00043988,120]
[392101634,1761161461571,-500.0,0.00043988,120]
[392101635,1761161461581,-500.0,0.00043988,120]
[392101636,1761161461590,-351.48289433,0.00043988,120]
[392101637,1761161461599,-500.0,0.00043988,120]
[392101638,1761161461609,-337.03175745,0.00043988,120]
[392101639,1761161461619,-500.0,0.00043988,120]
[392101640,1761161461628,-500.0,0.00043988,30]
[392101641,1761161461637,-500.0,0.00043988,120]
[392101642,1761161461646,-500.0,0.00043988,120]
[392101643,1761161461656,-500.0,0.00043988,120]
[392101644,1761161461666,-500.0,0.00043988,120]
[392101645,1761161461675,-500.0,0.00043988,120]
[392101646,1761161461685,-500.0,0.00043988,120]
[392101647,1761161461695,-500.0,0.00043988,120]
[392101648,1761161461704,-500.0,0.00043988,120]
[392101649,1761161461714,-500.0,0.00043988,120]
[392101650,1761161461724,-603.56410334,0.00043988,120]
[392101651,1761161461734,-500.0,0.00043988,120]
[392101652,1761161461743,-500.0,0.00043988,120]
[392101653,1761161461754,-500.0,0.00043988,120]
[392101654,1761161461763,-500.0,0.00043988,120]
[392101655,1761161461772,-695.69,0.00043988,120]
[392101656,1761161461782,-500.0,0.00043988,120]
[392101657,1761161461791,-500.0,0.00043988,120]
[392101658,1761161461800,-500.0,0.00043988,120]
[392101659,1761161461809,-894.37,0.00043988,120]
[392101660,1761161461819,-500.0,0.00043988,120]
[392101661,1761161461828,-760.01,0.00043988,120]
[392101662,1761161461837,-853.51,0.00043988,120]
[392101663,1761161461849,-1580.55,0.00043988,120]
[392101664,1761161461859,-500.0,0.00043988,120]
[392101665,1761161461868,-961.77,0.00043988,120]
[392101666,1761161461877,-500.0,0.00043988,120]
[392101667,1761161461887,-500.0,0.00043988,120]
[392101668,1761161461896,-500.0,0.00043988,120]
[392101669,1761161461905,-837.83,0.00043988,120]
[392101670,1761161461914,-500.0,0.00043988,120]
[392101671,1761161461924,-500.0,0.00043988,120]
[392101672,1761161461935,-500.0,0.00043988,120]
[392101673,1761161461945,-500.0,0.00043988,120]
[392101674,1761161461955,-500.0,0.00043988,120]
[392101675,1761161461965,-342.03601249,0.00043988,120]
[392101676,1761161461975,-500.0,0.00043988,120]
[392101677,1761161461984,-567.15,0.00043988,120]
[392101678,1761161461995,-500.0,0.00043988,120]
[392101679,1761161462006,-1087.92,0.00043988,120]
[392101680,1761161462015,-500.0,0.00043988,2]
[392101681,1761161462025,-500.0,0.00043988,90]
[392101682,1761161462035,-604.59,0.00043988,120]
[392101683,1761161462044,-993.44,0.00043988,120]
[392101684,1761161462054,-500.0,0.00043988,2]
[392101685,1761161462063,-500.0,0.00043988,120]
[392101686,1761161462072,-500.0,0.00043988,120]
[392101687,1761161462081,-500.0,0.00043988,120]
[392101688,1761161462090,-500.0,0.00043988,120]
[392101689,1761161462100,-500.0,0.00043988,120]
[392101690,1761161462109,-500.0,0.00043988,120]
[392101691,1761161462119,-1141.01,0.00043988,120]
[392101692,1761161462128,-500.0,0.00043988,120]
[392101693,1761161462138,-500.0,0.00043988,120]
[392101694,1761161462147,-500.0,0.00043988,120]
[392101695,1761161462156,-597.81,0.00043988,120]
[392101696,1761161462165,-500.0,0.00043988,120]
[392101697,1761161462174,-500.0,0.00043988,120]
[392101698,1761161462183,-500.0,0.00043988,120]
[392101699,1761161462193,-500.0,0.00043988,120]
[392101700,1761161462202,-555.98,0.00043988,12]
[392101701,1761161462213,-300.0,0.00043988,120]
[392101702,1761161462226,-670.61,0.00043988,120]
[392101703,1761161462237,-500.0,0.00043988,120]
[392101704,1761161462246,-500.0,0.00043988,120]
[392101705,1761161462256,-500.0,0.00043988,120]
[392101706,1761161462267,-500.0,0.00043988,120]
[392101707,1761161462276,-500.0,0.00043988,120]
[392101708,1761161462286,-500.0,0.00043988,120]
[392101709,1761161462296,-500.0,0.00043988,120]
[392101710,1761161462306,-839.26,0.00043988,120]
[392101711,1761161462315,-500.0,0.00043988,120]
[392101712,1761161462325,-639.08,0.00043988,120]
[392101713,1761161462334,-500.0,0.00043988,120]
[392101714,1761161462344,-1205.25,0.00043988,120]
[392101715,1761161462353,-1205.25,0.00043988,120]
[392101716,1761161462362,-500.0,0.00043988,120]
[392101717,1761161462371,-664.72,0.00043988,120]
[392101718,1761161462380,-726.53,0.00043988,120]
[392101719,1761161462389,-500.0,0.00043988,120]
[392101720,1761161462399,-500.0,0.00043988,120]
[392101721,1761161462408,-824.35,0.00043988,120]
[392101722,1761161462417,-824.35,0.00043988,120]
[392101723,1761161462426,-500.0,0.00043988,120]
[392101724,1761161462436,-739.95,0.00043988,120]
[392101725,1761161462445,-500.0,0.00043988,120]
[392101726,1761161462455,-500.0,0.00043988,120]
[392101727,1761161462466,-500.0,0.00043988,120]
[392101728,1761161462476,-916.3,0.00043988,120]
[392101729,1761161462486,-500.0,0.00043988,7]
[392101730,1761161462495,-509.30503072,0.00043988,7]
[392101731,1761161462504,-500.0,0.00043988,120]
[392101732,1761161462515,-500.0,0.00043988,120]
[392101733,1761161462524,-623.15,0.00043988,120]
[392101734,1761161462534,-623.15,0.00043988,120]
[392101735,1761161462544,-759.76,0.00043988,120]
[392101736,1761161462553,-1418.79,0.00043988,120]
[392101737,1761161462563,-500.0,0.00043988,120]
[392101738,1761161462572,-500.0,0.00043988,120]
[392101739,1761161462581,-500.0,0.00043988,120]
[392101740,1761161462591,-731.53,0.00043988,120]
[392101741,1761161462600,-500.0,0.00043988,30]
[392101742,1761161462609,-500.0,0.00043988,120]
[392101743,1761161462704,-500.0,0.00043988,120]
[392101744,1761161462714,-500.0,0.00043988,120]
[392101745,1761161462727,-500.0,0.00043988,120]
[392101746,1761161462736,-500.0,0.00043988,120]
[392101747,1761161462746,-891.43,0.00043988,120]
[392101748,1761161462755,-891.43,0.00043988,120]
[392101749,1761161462764,-500.0,0.00043988,120]
[392101750,1761161462774,-708.56,0.00043988,120]
[392101751,1761161462784,-468.70841808,0.00043988,60]
[392101752,1761161462794,-500.0,0.00043988,120]
[392101753,1761161462804,-500.0,0.00043988,120]
[392101754,1761161462814,-500.0,0.00043988,120]
[392101755,1761161462823,-500.0,0.00043988,120]
[392101756,1761161462832,-500.0,0.00043988,2]
[392101757,1761161462842,-500.0,0.00043988,120]
[392101758,1761161462851,-834.33,0.00043988,120]
[392101759,1761161462861,-500.0,0.00043988,120]
[392101760,1761161462871,-500.0,0.00043988,120]
[392101761,1761161462881,-500.0,0.00043988,120]
[392101762,1761161462890,-500.0,0.00043988,120]
[392101763,1761161462900,-285.804058,0.00043988,120]
[392101764,1761161462909,-500.0,0.00043988,120]
[392101765,1761161462918,-500.0,0.00043988,120]
[392101766,1761161462928,-1087.18,0.00043988,120]
[392101767,1761161462938,-691.13,0.00043988,120]
[392101768,1761161462948,-691.13,0.00043988,120]
[392101769,1761161462958,-500.0,0.00043988,120]
[392101770,1761161462969,-577.29,0.00043988,120]
[392101771,1761161462979,-500.0,0.00043988,120]
[392101772,1761161462990,-500.0,0.00043988,120]
[392101773,1761161463000,-3246.52,0.00043988,120]
[392101774,1761161463011,-3246.52,0.00043988,120]
[392101775,1761161463023,-497.95187004,0.00043988,120]
[392101776,1761161463033,-625.58,0.00043988,120]
[392101777,1761161463044,-500.0,0.00043988,120]
[392101778,1761161463053,-5477.48,0.00043988,120]
[392101779,1761161463062,-5477.48,0.00043988,120]
[392101780,1761161463071,-521.96,0.00043988,120]
[392101781,1761161463081,-521.96,0.00043988,120]
[392101782,1761161463091,-500.0,0.00043988,120]
[392101783,1761161463101,-500.0,0.00043988,120]
[392101784,1761161463110,-593.34,0.00043988,120]
[392101785,1761161463120,-593.34,0.00043988,120]
[392101786,1761161463130,-665.52,0.00043988,120]
[392101787,1761161463141,-665.52,0.00043988,120]
[392101788,1761161463150,-583.51,0.00043988,120]
[392101789,1761161463160,-500.0,0.00043988,120]
[392101790,1761161463170,-500.0,0.00043988,120]
[392101791,1761161463185,-500.0,0.00043988,120]
[392101792,1761161463195,-500.0,0.00043988,120]
[392101793,1761161463206,-500.0,0.00043988,120]
[392101794,1761161463219,-500.0,0.00043988,120]
[392101795,1761161463230,-1079.01,0.00043988,120]
[392101796,1761161463241,-1079.01,0.00043988,120]
[392101797,1761161463251,-768.13,0.00043988,120]
[392101798,1761161463262,-692.82,0.00043988,120]
[392101799,1761161463272,-692.82,0.00043988,120]
[392101800,1761161463282,-1016.54,0.00043988,120]
[392101801,1761161463293,-1016.54,0.00043988,120]
[392101802,1761161463305,-801.13,0.00043988,120]
[392101803,1761161463315,-500.0,0.00043988,120]
[392101804,1761161463328,-651.4,0.00043988,120]
[392101805,1761161463339,-651.4,0.00043988,120]
[392101806,1761161463348,-1029.39,0.00043988,120]
[392101807,1761161463358,-799.25,0.00043988,120]
[392101808,1761161463367,-162.25343315,0.00043988,120]
[392101809,1761161463377,-1074.58,0.00043988,120]
[392101810,1761161463386,-500.0,0.00043988,120]
[392101811,1761161463396,-613.54,0.00043988,120]
[392101812,1761161463406,-558.32,0.00043988,120]
[392101813,1761161463416,-558.32,0.00043988,120]
[392101814,1761161463426,-1203.5,0.00043988,120]
[392101815,1761161463435,-609.65,0.00043988,120]
[392101816,1761161463445,-609.65,0.00043988,120]
[392101817,1761161463457,-500.0,0.00043988,120]
[392101818,1761161463469,-2024.8,0.00043988,120]
[392101819,1761161463479,-875.35,0.00043988,120]
[392101820,1761161463489,-692.44,0.00043988,120]
[392101821,1761161463501,-692.44,0.00043988,120]
[392101822,1761161463512,-500.0,0.00043989,2]
[392101823,1761161463522,-500.0,0.00043989,120]
[392101824,1761161463531,-511.56039455,0.00043989,120]
[392101825,1761161463541,-500.0,0.00043989,120]
[392101826,1761161463551,-500.0,0.00043989,120]
[392101827,1761161463560,-510.93028809,0.00043989,120]
[392101828,1761161463570,-500.0,0.00043989,120]
[392101829,1761161463581,-500.0,0.00043989,120]
[392101830,1761161463591,-500.0,0.00043989,120]
[392101831,1761161463600,-516.0780715,0.00043989,120]
[392101832,1761161463610,-500.0,0.00043989,120]
[392101833,1761161463620,-508.22035574,0.00043989,120]
[392101834,1761161463630,-502.96340765,0.00043989,120]
[392101835,1761161463640,-501.21100855,0.00043989,120]
[392101836,1761161463649,-500.0,0.00043989,120]
[392101837,1761161463659,-500.0,0.00043989,120]
[392101838,1761161463668,-526.19993667,0.00043989,120]
[392101839,1761161463678,-384396.67929549,0.00043996,18]
[392101840,1761161463687,-500.0,0.00043997,120]
[392101841,1761161463697,-500.0,0.00043997,120]
[392101842,1761161463707,-764.41,0.00043997,120]
[392101843,1761161463716,-571.58,0.00043997,30]
[392101844,1761161463726,-804.79,0.00043997,120]
[392101845,1761161463735,-500.0,0.00043997,120]
[392101846,1761161463744,-527.97,0.00043997,120]
[392101847,1761161463756,-594.75929829,0.00043997,120]
[392101848,1761161463767,-791.58,0.00043997,120]
[392101849,1761161463776,-780.17,0.00043997,120]
[392101850,1761161463786,-990.94,0.00043997,120]
[392101851,1761161463796,-1044.35,0.00043997,120]
[392101852,1761161463806,-500.0,0.00043997,120]
[392101853,1761161463815,-500.0,0.00043997,120]
[392101854,1761161463825,-500.0,0.00043997,120]
[392101855,1761161463834,-500.0,0.00043997,120]
[392101856,1761161463844,-1596.27,0.00043997,120]
[392101857,1761161463853,-509.7358663,0.00043997,120]
[392101858,1761161463863,-1205.25,0.00043997,120]
[392101859,1761161463873,-500.0,0.00043997,120]
[392101860,1761161463882,-500.0,0.00043997,120]
[392101861,1761161463893,-837.99,0.00043997,120]
[392101862,1761161463905,-824.35,0.00043997,120]
[392101863,1761161463914,-413.52692153,0.00043997,120]
[392101864,1761161463924,-500.0,0.00043997,120]
[392101865,1761161463934,-151.44311006,0.00043997,120]
[392101866,1761161463946,-500.0,0.00043997,120]
[392101867,1761161463957,-858.34,0.00043997,2]
[392101868,1761161463967,-1101.44,0.00043997,120]
[392101869,1761161463977,-623.15,0.00043997,120]
[392101870,1761161463986,-237.8,0.00043997,120]
[392101871,1761161463996,-668.32,0.00043997,120]
[392101872,1761161464008,-244.38911256,0.00043997,120]
[392101873,1761161464019,-500.0,0.00043997,120]
[392101874,1761161464029,-4265.19,0.00043997,30]
[392101875,1761161464038,-1263.06,0.00043997,120]
[392101876,1761161464048,-587.93425713,0.00043997,120]
[392101877,1761161464058,-500.0,0.00043997,120]
[392101878,1761161464069,-500.0,0.00043997,120]
[392101879,1761161464079,-500.0,0.00043997,120]
[392101880,1761161464089,-1623.35,0.00043997,120]
[392101881,1761161464099,-538.57,0.00043997,120]
[392101882,1761161464109,-891.43,0.00043997,120]
[392101883,1761161464121,-500.0,0.00043997,120]
[392101884,1761161464130,-709.57,0.00043997,120]
[392101885,1761161464140,-617.0,0.00043997,120]
[392101886,1761161464151,-500.0,0.00043997,120]
[392101887,1761161464162,-4110.15,0.00043997,120]
[392101888,1761161464172,-500.0,0.00043997,120]
[392101889,1761161464181,-500.0,0.00043997,120]
[392101890,1761161464191,-500.0,0.00043997,120]
[392101891,1761161464200,-500.0,0.00043997,120]
[392101892,1761161464210,-889.38,0.00043997,120]
[392101893,1761161464301,-777.67,0.00043997,120]
[392101894,1761161464312,-500.0,0.00043997,120]
[392101895,1761161464321,-500.0,0.00043997,120]
[392101896,1761161464331,-500.0,0.00043997,120]
[392101897,1761161464341,-691.13,0.00043997,120]
[392101898,1761161464350,-500.0,0.00043997,120]
[392101899,1761161464359,-500.0,0.00043997,120]
[392101900,1761161464369,-500.0,0.00043997,120]
[392101901,1761161464378,-3246.52,0.00043997,120]
[392101902,1761161464388,-887.37,0.00043997,120]
[392101903,1761161464398,-500.0,0.00043997,120]
[392101904,1761161464407,-302.12014112,0.00043997,120]
[392101905,1761161464417,-5477.48,0.00043997,120]
[392101906,1761161464426,-500.0,0.00043997,120]
[392101907,1761161464437,-521.96,0.00043997,120]
[392101908,1761161464447,-500.0,0.00043997,120]
[392101909,1761161464458,-554.8,0.00043997,120]
[392101910,1761161464468,-537.84,0.00043997,120]
[392101911,1761161464477,-500.0,0.00043997,120]
[392101912,1761161464487,-593.34,0.00043997,120]
[392101913,1761161464499,-500.0,0.00043997,120]
[392101914,1761161464509,-1404.73,0.00043997,120]
[392101915,1761161464520,-636.1,0.00043997,120]
[392101916,1761161464529,-665.52,0.00043997,120]
[392101917,1761161464539,-500.0,0.00043997,120]
[392101918,1761161464549,-188.970966,0.00043997,120]
[392101919,1761161464558,-500.0,0.00043997,120]
[392101920,1761161464568,-151.0,0.00043997,120]
[392101921,1761161464577,-825.9,0.00043997,120]
[392101922,1761161464587,-857.87,0.00043997,120]
[392101923,1761161464597,-707.53,0.00043997,120]
[392101924,1761161464607,-187.304323,0.00043997,120]
[392101925,1761161464618,-187.304323,0.00043997,120]
[392101926,1761161464627,-187.304323,0.00043997,120]
[392101927,1761161464637,-500.0,0.00043997,120]
[392101928,1761161464647,-187.304332,0.00043997,120]
[392101929,1761161464666,-500.0,0.00043997,120]
[392101930,1761161464678,-1079.01,0.00043997,120]
[392101931,1761161464688,-789.86,0.00043997,120]
[392101932,1761161464698,-692.82,0.00043997,120]
[392101933,1761161464708,-1016.54,0.00043997,120]
[392101934,1761161464718,-651.4,0.00043997,120]
[392101935,1761161464729,-151.0,0.00043997,120]
[392101936,1761161464738,-1074.58,0.00043997,120]
[392101937,1761161464749,-500.0,0.00043997,120]